fUSD/lending_fUSD_20250123
["ID","MTS","AMOUNT","RATE_DAILY","PERIOD"]
[350156560,1737659461179,-500.0,0.00017534,2]
[350156561,1737659461188,-223.08845827,0.00017534,2]
[350156562,1737659461197,-701.06,0.00017534,2]
[350156563,1737659461206,-726.08,0.00017534,2]
[350156564,1737659461215,-1735.27,0.00017534,2]
[350156565,1737659461225,-236.35404,0.00017534,2]
[350156566,1737659461234,-916.91,0.00017534,2]
[350156567,1737659461244,-4027.0,0.00017534,2]
[350156568,1737659461253,-1282.02,0.00017534,2]
[350156569,1737659461262,-1895.9,0.00017534,2]
[350156570,1737659461276,-500.0,0.00017534,2]
[350156571,1737659461286,-1368.39,0.00017534,2]
[350156572,1737659461296,-500.0,0.00017534,2]
[350156573,1737659461306,-500.0,0.00017534,2]
[350156574,1737659461315,-500.0,0.00017534,2]
[350156575,1737659461325,-3765.33,0.00017534,2]
[350156576,1737659461334,-907.71,0.00017534,2]
[350156577,1737659461347,-500.0,0.00017534,2]
[350156578,1737659461357,-500.0,0.00017534,2]
[350156579,1737659461367,-890.41,0.00017534,2]
[350156580,1737659461377,-500.0,0.00017534,2]
[350156581,1737659461387,-804.17,0.00017534,2]
[350156582,1737659461396,-717.06,0.00017534,2]
[350156583,1737659461406,-1018.62,0.00017534,2]
[350156584,1737659461414,-1134.5,0.00017534,2]
[350156585,1737659461425,-500.0,0.00017534,2]
[350156586,1737659461435,-1963.62,0.00017534,2]
[350156587,1737659461444,-618.37,0.00017534,2]
[350156588,1737659461454,-500.0,0.00017534,2]
[350156589,1737659461463,-500.0,0.00017534,2]
[350156590,1737659461473,-2352.22,0.00017534,2]
[350156591,1737659461482,-1719.23,0.00017534,2]
[350156592,1737659461491,-500.0,0.00017534,2]
[350156593,1737659461501,-500.0,0.00017534,2]
[350156594,1737659461511,-222.118011,0.00017534,2]
[350156595,1737659461524,-500.0,0.00017534,2]
[350156596,1737659461533,-222.118011,0.00017534,2]
[350156597,1737659461542,-1152.72,0.00017534,2]
[350156598,1737659461552,-500.0,0.00017534,2]
[350156599,1737659461562,-663.45,0.00017534,2]
[350156600,1737659461572,-500.0,0.00017534,2]
[350156601,1737659461582,-597.02,0.00017534,2]
[350156602,1737659461592,-604.98,0.00017534,2]
[350156603,1737659461601,-500.0,0.00017534,2]
[350156604,1737659461610,-500.0,0.00017534,2]
[350156605,1737659461619,-2176.5,0.00017534,2]
[350156606,1737659461629,-500.0,0.00017534,2]
[350156607,1737659461639,-695.73,0.00017534,2]
[350156608,1737659461648,-3149.47,0.00017534,2]
[350156609,1737659461658,-500.0,0.00017534,2]
[350156610,1737659461668,-1018.19,0.00017534,2]
[350156611,1737659461677,-500.0,0.00017534,2]
[350156612,1737659461687,-1436.45,0.00017534,2]
[350156613,1737659461697,-500.0,0.00017534,2]
[350156614,1737659461706,-663.6,0.00017534,2]
[350156615,1737659461715,-500.0,0.00017534,2]
[350156616,1737659461724,-906.61,0.00017534,2]
[350156617,1737659461734,-787.9463407,0.0001759,2]
[350156618,1737659461744,-5558.0,0.000176,5]
[350156619,1737659461753,-151.0,0.00017607,2]
[350156620,1737659461763,-151.0,0.00017607,2]
[350156621,1737659461777,-587.384009,0.00017607,2]
[350156622,1737659461786,-587.384009,0.00017607,2]
[350156623,1737659461795,-151.0,0.00017607,2]
[350156624,1737659461806,-151.0,0.00017607,2]
[350156625,1737659461816,-151.0,0.00017607,2]
[350156626,1737659461826,-164.139556,0.00017608,2]
[350156627,1737659461836,-164.139556,0.00017608,2]
[350156628,1737659461845,-216.236203,0.00017608,2]
[350156629,1737659461855,-481.765398,0.00017608,2]
[350156630,1737659461864,-401.970784,0.00017608,2]
[350156631,1737659461874,-401.970784,0.00017608,2]
[350156632,1737659461884,-151.0,0.00017608,2]
[350156633,1737659461893,-150.0,0.00017634,2]
[350156634,1737659461903,-982.28,0.00017634,2]
[350156635,1737659461912,-982.28,0.00017638,2]
[350156636,1737659461921,-982.28,0.00017638,2]
[350156637,1737659461930,-982.28,0.00017638,2]
[350156638,1737659461939,-982.28,0.00017638,2]
[350156639,1737659461948,-982.28,0.00017638,2]
[350156640,1737659461958,-982.28,0.00017638,2]
[350156641,1737659461968,-982.28,0.00017638,2]
[350156642,1737659461977,-982.28,0.00017638,2]
[350156643,1737659461987,-982.28,0.00017638,2]
[350156644,1737659461996,-982.28,0.00017638,2]
[350156645,1737659462005,-982.28,0.00017638,2]
[350156646,1737659462014,-982.28,0.00017638,2]
[350156647,1737659462025,-982.28,0.00017638,2]
[350156648,1737659462034,-297.14,0.0001764,2]
[350156649,1737659462044,-154.43,0.00017644,2]
[350156650,1737659462054,-500.0,0.0001767,2]
[350156651,1737659462063,-500.0,0.00017673,2]
[350156652,1737659462072,-500.0,0.00017673,2]
[350156653,1737659462081,-150.0,0.00017679,2]
[350156654,1737659462090,-166.0,0.00017679,2]
[350156655,1737659462100,-150.979,0.00017679,2]
[350156656,1737659462109,-150.0,0.00017679,2]
[350156657,1737659462118,-165.846,0.00017679,2]
[350156658,1737659462127,-180.302,0.00017679,2]
[350156659,1737659462136,-150.186,0.00017679,2]
[350156660,1737659462146,-250.0,0.00017679,2]
[350156661,1737659462155,-250.0,0.00017679,2]
[350156662,1737659462164,-150.0,0.00017679,2]
[350156663,1737659462174,-283.892,0.00017679,2]
[350156664,1737659462183,-2019.0,0.00017679,2]
[350156665,1737659462192,-1270.0,0.00017679,2]
[350156666,1737659462201,-636.0,0.00017679,2]
[350156667,1737659462210,-219.286,0.00017679,2]
[350156668,1737659462219,-581.396,0.00017679,2]
[350156669,1737659462228,-1864.0,0.00017679,2]
[350156670,1737659462237,-781.0,0.00017679,2]
[350156671,1737659462246,-908.0,0.00017679,2]
[350156672,1737659462256,-1261.0,0.00017679,2]
[350156673,1737659462265,-3007.741,0.00017679,2]
[350156674,1737659462274,-3985.0,0.00017679,2]
[350156675,1737659462283,-538.0,0.00017679,2]
[350156676,1737659462292,-232.795,0.00017679,2]
[350156677,1737659462301,-319.05962904,0.00017688,2]
[350156678,1737659462310,-3000.0,0.0001771,2]
[350156679,1737659462320,-2675.0,0.00017726,2]
[350156680,1737659462329,-1524.21129733,0.00017754,2]
[350156681,1737659462342,-787.9463407,0.00017762,2]
[350156682,1737659462352,-500.0,0.00017807,2]
[350156683,1737659462361,-1020.76,0.00017807,2]
[350156684,1737659462371,-500.0,0.00017807,2]
[350156685,1737659462380,-871.79,0.00017807,2]
[350156686,1737659462390,-1745.56,0.00017807,2]
[350156687,1737659462399,-3723.73,0.00017807,2]
[350156688,1737659462408,-742.21,0.00017807,2]
[350156689,1737659462419,-779.77,0.00017807,2]
[350156690,1737659462429,-725.66,0.00017807,2]
[350156691,1737659462439,-1457.19,0.00017807,2]
[350156692,1737659462449,-678.42,0.00017807,2]
[350156693,1737659462458,-1002.67,0.00017807,2]
[350156694,1737659462467,-1122.55,0.00017807,2]
[350156695,1737659462477,-1000.0,0.00017807,2]
[350156696,1737659462487,-1033.73,0.00017807,2]
[350156697,1737659462497,-506.55,0.00017807,2]
[350156698,1737659462507,-1827.81,0.00017807,2]
[350156699,1737659462518,-1482.85,0.00017807,2]
[350156700,1737659462529,-151.0,0.00017808,2]
[350156701,1737659462539,-151.0,0.00017808,2]
[350156702,1737659462549,-164.139556,0.00017808,2]
[350156703,1737659462559,-164.139556,0.00017808,2]
[350156704,1737659462569,-524.8039845,0.00017808,2]
[350156705,1737659462578,-481.765398,0.00017808,2]
[350156706,1737659462587,-500.0,0.00017808,2]
[350156707,1737659462598,-500.0,0.00017808,2]
[350156708,1737659462608,-500.0,0.00017808,2]
[350156709,1737659462617,-401.970784,0.00017808,2]
[350156710,1737659462627,-401.970784,0.00017808,2]
[350156711,1737659462637,-500.0,0.00017808,2]
[350156712,1737659462647,-500.0,0.00017808,2]
[350156713,1737659462657,-500.0,0.00017808,2]
[350156714,1737659462666,-500.0,0.00017808,2]
[350156715,1737659462676,-500.0,0.00017808,2]
[350156716,1737659462686,-151.0,0.00017808,2]
[350156717,1737659462695,-500.0,0.00017808,2]
[350156718,1737659462704,-151.0,0.00017808,2]
[350156719,1737659462713,-151.0,0.00017808,2]
[350156720,1737659462722,-500.0,0.00017808,2]
[350156721,1737659462731,-500.0,0.00017808,2]
[350156722,1737659462741,-500.0,0.00017808,2]
[350156723,1737659462751,-587.384009,0.00017808,2]
[350156724,1737659462762,-500.0,0.00017808,2]
[350156725,1737659462772,-500.0,0.00017808,2]
[350156726,1737659462782,-587.384009,0.00017808,2]
[350156727,1737659462791,-151.0,0.00017808,2]
[350156728,1737659462801,-500.0,0.00017808,2]
[350156729,1737659462811,-500.0,0.00017808,2]
[350156730,1737659462820,-500.0,0.00017808,2]
[350156731,1737659462830,-500.0,0.00017808,2]
[350156732,1737659462839,-500.0,0.00017808,2]
[350156733,1737659462848,-500.0,0.00017808,2]
[350156734,1737659462858,-500.0,0.00017808,2]
[350156735,1737659462867,-151.0,0.00017808,2]
[350156736,1737659462877,-500.0,0.00017808,2]
[350156737,1737659462886,-157.847608,0.00017808,2]
[350156738,1737659462895,-321.97892951,0.00017808,2]
[350156739,1737659462904,-500.0,0.00017808,2]
[350156740,1737659462913,-500.0,0.00017808,2]
[350156741,1737659462922,-500.0,0.00017808,2]
[350156742,1737659462933,-500.0,0.00017808,2]
[350156743,1737659462942,-500.0,0.00017808,2]
[350156744,1737659462951,-500.0,0.00017808,2]
[350156745,1737659462960,-500.0,0.00017808,2]
[350156746,1737659462969,-500.0,0.00017808,2]
[350156747,1737659462978,-504.530978,0.00017808,2]
[350156748,1737659462988,-500.0,0.00017808,2]
[350156749,1737659462997,-504.530978,0.00017808,2]
[350156750,1737659463006,-500.0,0.00017808,2]
[350156751,1737659463015,-500.0,0.00017808,2]
[350156752,1737659463028,-151.0,0.00017808,2]
[350156753,1737659463038,-500.0,0.00017808,2]
[350156754,1737659463047,-500.0,0.00017808,2]
[350156755,1737659463057,-500.0,0.00017808,2]
[350156756,1737659463067,-500.0,0.00017808,2]
[350156757,1737659463078,-500.0,0.00017808,2]
[350156758,1737659463088,-500.0,0.00017808,2]
[350156759,1737659463098,-649.4,0.00017808,2]
[350156760,1737659463107,-500.0,0.00017808,2]
[350156761,1737659463117,-500.0,0.00017808,2]
[350156762,1737659463126,-500.0,0.00017808,2]
[350156763,1737659463136,-500.0,0.00017808,2]
[350156764,1737659463145,-171.226082,0.00017808,2]
[350156765,1737659463155,-500.0,0.00017808,2]
[350156766,1737659463165,-370.249633,0.00017808,2]
[350156767,1737659463175,-500.0,0.00017808,2]
[350156768,1737659463184,-151.0,0.00017808,2]
[350156769,1737659463194,-500.0,0.00017808,2]
[350156770,1737659463204,-500.0,0.00017808,2]
[350156771,1737659463214,-500.0,0.00017808,2]
[350156772,1737659463224,-500.0,0.00017808,2]
[350156773,1737659463234,-500.0,0.00017808,2]
[350156774,1737659463244,-634.041024,0.00017808,2]
[350156775,1737659463254,-634.041024,0.00017808,2]
[350156776,1737659463263,-160.344778,0.00017808,2]
[350156777,1737659463275,-500.0,0.00017808,2]
[350156778,1737659463285,-160.344778,0.00017808,2]
[350156779,1737659463296,-500.0,0.00017808,2]
[350156780,1737659463305,-500.0,0.00017808,2]
[350156781,1737659463314,-500.0,0.00017808,2]
[350156782,1737659463324,-500.0,0.00017808,2]
[350156783,1737659463333,-500.0,0.00017808,2]
[350156784,1737659463344,-500.0,0.00017808,2]
[350156785,1737659463354,-500.0,0.00017808,2]
[350156786,1737659463365,-500.0,0.00017808,2]
[350156787,1737659463374,-500.0,0.00017808,2]
[350156788,1737659463383,-500.0,0.00017808,2]
[350156789,1737659463394,-500.0,0.00017808,2]
[350156790,1737659463403,-500.0,0.00017808,2]
[350156791,1737659463412,-500.0,0.00017808,2]
[350156792,1737659463423,-500.0,0.00017808,2]
[350156793,1737659463433,-500.0,0.00017808,2]
[350156794,1737659463442,-500.0,0.00017808,2]
[350156795,1737659463452,-500.0,0.00017808,2]
[350156796,1737659463461,-500.0,0.00017808,2]
[350156797,1737659463471,-500.0,0.00017808,2]
[350156798,1737659463481,-500.0,0.00017808,2]
[350156799,1737659463492,-500.0,0.00017808,2]
[350156800,1737659463502,-500.0,0.00017808,2]
[350156801,1737659463647,-610.92,0.00017808,2]
[350156802,1737659463658,-706.81,0.00017808,2]
[350156803,1737659463669,-1003.27,0.00017808,2]
[350156804,1737659463679,-625.99,0.00017808,2]
[350156805,1737659463689,-151.0,0.00017808,2]
[350156806,1737659463699,-570.26,0.00017808,2]
[350156807,1737659463708,-151.0,0.00017808,2]
[350156808,1737659463719,-2144.07,0.00017808,2]
[350156809,1737659463729,-523.31,0.00017808,2]
[350156810,1737659463739,-576.57,0.00017808,2]
[350156811,1737659463749,-151.0,0.00017808,2]
[350156812,1737659463759,-941.99,0.00017808,2]
[350156813,1737659463772,-814.94,0.00017808,2]
[350156814,1737659463783,-552.46,0.00017808,2]
[350156815,1737659463794,-151.0,0.00017808,2]
[350156816,1737659463803,-500.0,0.00017808,2]
[350156817,1737659463813,-151.0,0.00017808,2]
[350156818,1737659463823,-151.0,0.00017808,2]
[350156819,1737659463832,-1765.72,0.00017808,2]
[350156820,1737659463843,-438.962228,0.00017808,2]
[350156821,1737659463854,-500.0,0.00017808,2]
[350156822,1737659463865,-1382.35,0.00017808,2]
[350156823,1737659463875,-1779.271711,0.00017808,2]
[350156824,1737659463885,-151.0,0.00017808,2]
[350156825,1737659463895,-500.0,0.00017808,2]
[350156826,1737659463904,-500.0,0.00017808,2]
[350156827,1737659463914,-764.07,0.00017808,2]
[350156828,1737659463924,-663.09,0.00017808,2]
[350156829,1737659463935,-500.0,0.00017808,2]
[350156830,1737659463944,-1685.96,0.00017808,2]
[350156831,1737659463954,-647.39,0.00017808,2]
[350156832,1737659463964,-400.491439,0.00017808,2]
[350156833,1737659463974,-784.74,0.00017808,2]
[350156834,1737659463985,-400.491439,0.00017808,2]
[350156835,1737659463994,-816.16,0.00017808,2]
[350156836,1737659464004,-500.0,0.00017808,2]
[350156837,1737659464013,-500.0,0.00017808,2]
[350156838,1737659464026,-504.112179,0.00017808,2]
[350156839,1737659464036,-500.0,0.00017808,2]
[350156840,1737659464045,-500.0,0.00017808,2]
[350156841,1737659464054,-2469.54,0.00017808,2]
[350156842,1737659464064,-748.67,0.00017808,2]
[350156843,1737659464074,-500.0,0.00017808,2]
[350156844,1737659464084,-896.15,0.00017808,2]
[350156845,1737659464094,-993.46,0.00017808,2]
[350156846,1737659464104,-857.28,0.00017808,2]
[350156847,1737659464115,-1315.43,0.00017808,2]
[350156848,1737659464125,-1046.73,0.00017808,2]
[350156849,1737659464135,-151.0,0.00017808,2]
[350156850,1737659464145,-500.0,0.00017808,2]
[350156851,1737659464155,-1815.73,0.00017808,2]
[350156852,1737659464166,-645.04,0.00017808,2]
[350156853,1737659464176,-500.0,0.00017808,2]
[350156854,1737659464185,-503.15,0.00017808,2]
[350156855,1737659464195,-862.15,0.00017808,2]
[350156856,1737659464204,-500.0,0.00017808,2]
[350156857,1737659464215,-500.0,0.00017808,2]
[350156858,1737659464226,-1898.25,0.00017808,2]
[350156859,1737659464236,-726.91,0.00017808,2]
[350156860,1737659464246,-151.0,0.00017808,2]
[350156861,1737659464256,-500.0,0.00017808,2]
[350156862,1737659464267,-500.0,0.00017808,2]
[350156863,1737659464281,-500.0,0.00017808,2]
[350156864,1737659464292,-2176.53,0.00017808,2]
[350156865,1737659464302,-907.74,0.00017808,2]
[350156866,1737659464313,-666.87,0.00017808,2]
[350156867,1737659464323,-905.1,0.00017808,2]
[350156868,1737659464333,-2308.47,0.00017808,2]
[350156869,1737659464347,-2228.58,0.00017808,2]
[350156870,1737659464357,-500.0,0.00017808,2]
[350156871,1737659464366,-500.0,0.00017808,2]
[350156872,1737659464377,-500.0,0.00017808,2]
[350156873,1737659464388,-901.95,0.00017808,2]
[350156874,1737659464398,-151.0,0.00017808,2]
[350156875,1737659464408,-1916.0,0.00017808,2]
[350156876,1737659464418,-871.22,0.00017808,2]
[350156877,1737659464430,-151.0,0.00017808,2]
[350156878,1737659464440,-1589.5,0.00017808,2]
[350156879,1737659464450,-1591.14,0.00017808,2]
[350156880,1737659464460,-500.0,0.00017808,2]
[350156881,1737659464470,-701.06,0.00017808,2]
[350156882,1737659464480,-726.08,0.00017808,2]
[350156883,1737659464490,-1390.47807369,0.00017808,2]
[350156884,1737659464696,-344.79192631,0.00017808,2]
[350156885,1737659464706,-753.20807369,0.00017808,2]
[350156886,1737659464717,-163.70192631,0.00017808,2]
[350156887,1737659464726,-2346.29807369,0.00017808,2]
[350156888,1737659464738,-896.1402063,0.00017808,2]
[350156889,1737659464749,-784.56172001,0.00017808,2]
[350156890,1737659464759,-1282.02,0.00017808,2]
[350156891,1737659464770,-1895.9,0.00017808,2]
[350156892,1737659464781,-500.0,0.00017808,2]
[350156893,1737659464790,-1368.39,0.00017808,2]
[350156894,1737659464800,-500.0,0.00017808,2]
[350156895,1737659464809,-500.0,0.00017808,2]
[350156896,1737659464819,-3765.33,0.00017808,2]
[350156897,1737659464828,-907.71,0.00017808,2]
[350156898,1737659464837,-500.0,0.00017808,2]
[350156899,1737659464847,-500.0,0.00017808,2]
[350156900,1737659464857,-890.41,0.00017808,2]
[350156901,1737659464867,-804.17,0.00017808,2]
[350156902,1737659464876,-717.06,0.00017808,2]
[350156903,1737659464885,-1018.62,0.00017808,2]
[350156904,1737659464896,-1134.5,0.00017808,2]
[350156905,1737659464906,-500.0,0.00017808,2]
[350156906,1737659464916,-1963.62,0.00017808,2]
[350156907,1737659464926,-618.37,0.00017808,2]
[350156908,1737659464935,-500.0,0.00017808,2]
[350156909,1737659464946,-500.0,0.00017808,2]
[350156910,1737659464956,-2352.22,0.00017808,2]
[350156911,1737659464965,-1719.23,0.00017808,2]
[350156912,1737659464974,-139.90413903,0.00017808,2]
[350156913,1737659464989,-360.09586097,0.00017808,2]
[350156914,1737659464999,-500.0,0.00017808,2]
[350156915,1737659465010,-222.118011,0.00017808,2]
[350156916,1737659465020,-222.118011,0.00017808,2]
[350156917,1737659465030,-1152.72,0.00017808,2]
[350156918,1737659465039,-500.0,0.00017808,2]
[350156919,1737659465048,-500.0,0.00017808,2]
[350156920,1737659465058,-663.45,0.00017808,2]
[350156921,1737659465068,-500.0,0.00017808,2]
[350156922,1737659465078,-597.02,0.00017808,2]
[350156923,1737659465088,-604.98,0.00017808,2]
[350156924,1737659465097,-500.0,0.00017808,2]
[350156925,1737659465107,-500.0,0.00017808,2]
[350156926,1737659465116,-2176.5,0.00017808,2]
[350156927,1737659465126,-500.0,0.00017808,2]
[350156928,1737659465136,-695.73,0.00017808,2]
[350156929,1737659465146,-3149.47,0.00017808,2]
[350156930,1737659465155,-500.0,0.00017808,2]
[350156931,1737659465164,-1018.19,0.00017808,2]
[350156932,1737659465174,-244.36783223,0.00017808,2]
[350156933,1737659465186,-255.63216777,0.00017808,2]
[350156934,1737659465196,-484.76816811,0.00017808,2]
[350156935,1737659465208,-254.0389,0.00017808,2]
[350156936,1737659465219,-697.64293189,0.00017808,2]
[350156937,1737659465229,-500.0,0.00017808,2]
[350156938,1737659465239,-663.6,0.00017808,2]
[350156939,1737659465248,-500.0,0.00017808,2]
[350156940,1737659465257,-906.61,0.00017808,2]
[350156941,1737659465267,-151.0,0.00017882,2]
[350156942,1737659465279,-153.274124,0.00017882,2]
[350156943,1737659465289,-391.32135,0.000179,2]
[350156944,1737659465299,-2100.0,0.000179,6]
[350156945,1737659465308,-1108.00107818,0.00017921,2]
[350156946,1737659465318,-1000.0,0.00017921,2]
[350156947,1737659465327,-787.9463407,0.00017934,2]
[350156948,1737659465337,-500.0,0.00017944,2]
[350156949,1737659465349,-500.0,0.00017989,2]
[350156950,1737659465359,-377.17375786,0.00017989,2]
[350156951,1737659465368,-906.1964625,0.00018,3]
[350156952,1737659465378,-1609.3986,0.00018,2]
[350156953,1737659465388,-26344.66763244,0.00018,2]
[350156954,1737659465398,-748.0,0.00018,2]
[350156955,1737659465407,-1524.21129733,0.00018037,2]
[350156956,1737659465416,-11706.0,0.00018055,2]
[350156957,1737659465427,-160.344778,0.00018055,2]
[350156958,1737659465437,-160.344778,0.00018055,2]
[350156959,1737659465447,-578.45,0.00018081,2]
[350156960,1737659465456,-504.530978,0.00018081,2]
[350156961,1737659465466,-504.530978,0.00018081,2]
[350156962,1737659465476,-151.0,0.00018081,2]
[350156963,1737659465486,-370.249633,0.00018081,2]
[350156964,1737659465497,-370.249633,0.00018081,2]
[350156965,1737659465506,-151.0,0.00018081,2]
[350156966,1737659465516,-634.041024,0.00018081,2]
[350156967,1737659465530,-634.041024,0.00018081,2]
[350156968,1737659465539,-151.0,0.00018081,2]
[350156969,1737659465549,-151.0,0.00018081,2]
[350156970,1737659465558,-151.0,0.00018081,2]
[350156971,1737659465569,-151.0,0.00018081,2]
[350156972,1737659465579,-151.0,0.00018081,2]
[350156973,1737659465589,-1020.76,0.00018081,2]
[350156974,1737659465599,-151.0,0.00018081,2]
[350156975,1737659465610,-500.0,0.00018081,2]
[350156976,1737659465619,-1779.271711,0.00018081,2]
[350156977,1737659465631,-151.0,0.00018081,2]
[350156978,1737659465642,-871.79,0.00018081,2]
[350156979,1737659465652,-1745.56,0.00018081,2]
[350156980,1737659465663,-400.491439,0.00018081,2]
[350156981,1737659465674,-400.491439,0.00018081,2]
[350156982,1737659465684,-3723.73,0.00018081,2]
[350156983,1737659465694,-742.21,0.00018081,2]
[350156984,1737659465704,-779.77,0.00018081,2]
[350156985,1737659465714,-725.66,0.00018081,2]
[350156986,1737659465723,-1457.19,0.00018081,2]
[350156987,1737659465733,-678.42,0.00018081,2]
[350156988,1737659465743,-1002.67,0.00018081,2]
[350156989,1737659465754,-1122.55,0.00018081,2]
[350156990,1737659465764,-1000.0,0.00018081,2]
[350156991,1737659465776,-1033.73,0.00018081,2]
[350156992,1737659465786,-1827.81,0.00018081,2]
[350156993,1737659465796,-1482.85,0.00018081,2]
[350156994,1737659465806,-164.139556,0.00018082,2]
[350156995,1737659465817,-164.139556,0.00018082,2]
[350156996,1737659465826,-481.765398,0.00018082,2]
[350156997,1737659465836,-500.0,0.00018082,2]
[350156998,1737659465847,-500.0,0.00018082,2]
[350156999,1737659465858,-500.0,0.00018082,2]
[350157000,1737659465868,-401.970784,0.00018082,2]
[350157001,1737659465878,-401.970784,0.00018082,2]
[350157002,1737659465889,-500.0,0.00018082,2]
[350157003,1737659465898,-500.0,0.00018082,2]
[350157004,1737659465908,-500.0,0.00018082,2]
[350157005,1737659465918,-500.0,0.00018082,2]
[350157006,1737659465930,-500.0,0.00018082,2]
[350157007,1737659465941,-151.0,0.00018082,2]
[350157008,1737659465951,-151.0,0.00018082,2]
[350157009,1737659465962,-151.0,0.00018082,2]
[350157010,1737659465972,-500.0,0.00018082,2]
[350157011,1737659465982,-500.0,0.00018082,2]
[350157012,1737659465992,-500.0,0.00018082,2]
[350157013,1737659466002,-587.384009,0.00018082,2]
[350157014,1737659466012,-337.33,0.00018082,2]
[350157015,1737659466023,-500.0,0.00018082,2]
[350157016,1737659466034,-587.384009,0.00018082,2]
[350157017,1737659466045,-151.0,0.00018082,2]
[350157018,1737659466055,-500.0,0.00018082,2]
[350157019,1737659466066,-206.45,0.00018082,2]
[350157020,1737659466078,-500.0,0.00018082,2]
[350157021,1737659466088,-500.0,0.00018082,2]
[350157022,1737659466098,-500.0,0.00018082,2]
[350157023,1737659466108,-500.0,0.00018082,2]
[350157024,1737659466118,-151.0,0.00018082,2]
[350157025,1737659466128,-392.49992431,0.00018082,2]
[350157026,1737659466138,-500.0,0.00018082,2]
[350157027,1737659466147,-500.0,0.00018082,2]
[350157028,1737659466157,-500.0,0.00018082,2]
[350157029,1737659466167,-500.0,0.00018082,2]
[350157030,1737659466327,-500.0,0.00018082,2]
[350157031,1737659466341,-500.0,0.00018082,2]
[350157032,1737659466351,-436.49310778,0.00018082,2]
[350157033,1737659466368,-63.50689222,0.00018082,2]
[350157034,1737659466379,-500.0,0.00018082,2]
[350157035,1737659466389,-500.0,0.00018082,2]
[350157036,1737659466400,-500.0,0.00018082,2]
[350157037,1737659466411,-500.0,0.00018082,2]
[350157038,1737659466422,-500.0,0.00018082,2]
[350157039,1737659466431,-500.0,0.00018082,2]
[350157040,1737659466442,-500.0,0.00018082,2]
[350157041,1737659466452,-500.0,0.00018082,2]
[350157042,1737659466462,-500.0,0.00018082,2]
[350157043,1737659466473,-500.0,0.00018082,2]
[350157044,1737659466483,-500.0,0.00018082,2]
[350157045,1737659466493,-500.0,0.00018082,2]
[350157046,1737659466504,-500.0,0.00018082,2]
[350157047,1737659466514,-500.0,0.00018082,2]
[350157048,1737659466529,-500.0,0.00018082,2]
[350157049,1737659466538,-500.0,0.00018082,2]
[350157050,1737659466549,-500.0,0.00018082,2]
[350157051,1737659466560,-517.58,0.00018082,2]
[350157052,1737659466571,-500.0,0.00018082,2]
[350157053,1737659466583,-500.0,0.00018082,2]
[350157054,1737659466593,-500.0,0.00018082,2]
[350157055,1737659466606,-500.0,0.00018082,2]
[350157056,1737659466619,-562.5,0.00018082,2]
[350157057,1737659466629,-500.0,0.00018082,2]
[350157058,1737659466641,-500.0,0.00018082,2]
[350157059,1737659466651,-500.0,0.00018082,2]